Cogmind - Beta 15 @@@ ROGUE MODE // 2025.06.23 @ 16:10:49 Player: Volvedor Result: Destroyed by S-10 Pest with Light Assault Rifle Performance ------------- Evolutions (1) 500 Regions Visited (2) 400 Robots Destroyed (35) 175 Value Destroyed (814) 814 Prototype IDs (1) 20 Alien Tech Used (0) 0 Bonus (0) 0 TOTAL SCORE: 1909 Bonus ------- None Cogmind --------- Core Integrity 0/400 Matter 300/300 Energy 3/100 System Corruption 0% Temperature Cool (9) Movement Core (50) Location -9/Materials Parts ------- > --- POWER (1) -------- (None) > --- PROPULSION (2) --- (None) > --- UTILITY (4) ------ Weight Redist. System > --- WEAPON (2) ------- Mining Claw > --- INVENTORY (5) ---- Improved Ion Engine Light Nuclear Core Aluminum Leg Aluminum Leg Peak State ------------ > --- POWER ------------ Improved Ion Engine > --- PROPULSION ------- Aluminum Leg Aluminum Leg > --- UTILITY ---------- Small Storage Unit Weight Redist. System Seismic Detector Hardened Light Armor Plating > --- WEAPON ----------- Heavy Assault Rifle Heavy Assault Rifle > --- INVENTORY -------- Ion Engine Improved Ion Engine Light Nuclear Core Aluminum Leg Sensor Array Light Armor Plating Grenade Launcher Mining Claw [Rating: 15] Favorites ----------- Power Improved Ion Engine Engine Improved Ion Engine Propulsion Light Treads Treads Light Treads Leg Aluminum Leg Utility Small Storage Unit Device Seismic Detector Storage Small Storage Unit Protection Light Armor Plating Weapon Mining Claw Ballistic Gun Assault Rifle Launcher Grenade Launcher Special Weapon Mining Laser Slashing Weapon Mining Claw Special Melee Weapon Datajack Build | -11 -10 -9 ------- Run | Yrd Mat Mat Slots Evolved 2 | . . 2 Power . | . . . Propulsion . | . . . Utility 2 | . . 2 Weapon . | . . . Parts Attached 33 | 9 8 16 Power 5 | 1 3 1 Engine 5 | 1 3 1 Core . | . . . Reactor . | . . . Propulsion 9 | 2 . 7 Treads 2 | 2 . . Leg 7 | . . 7 Wheel . | . . . Hover . | . . . Flight . | . . . Utility 8 | 4 . 4 Device 5 | 3 . 2 Storage 1 | 1 . . Processor . | . . . Hackware . | . . . Protection 2 | . . 2 Artifact . | . . . Weapon 11 | 2 5 4 Energy Gun . | . . . Energy Cannon . | . . . Ballistic Gun 6 | 2 1 3 Ballistic Cannon . | . . . Launcher 1 | . . 1 Special Weapon 1 | . 1 . Impact Weapon . | . . . Slashing Weapon 1 | . 1 . Piercing Weapon . | . . . Special Melee Weapon 2 | . 2 . Unidentified Prototypes 1 | . . 1 Parts Lost 15 | . 2 13 Power 2 | . . 2 Propulsion 4 | . . 4 Utility 5 | . . 5 Weapon 4 | . 2 2 Highest Loss Streak 9 | . 1 9 To Critical Strikes . | . . . Average Backups 7 | 5 7 7 Power 1 | . 1 2 Propulsion 1 | 3 2 1 Utility . | . 1 . Weapon 2 | 1 2 3 Tool/Special . | . . . Unused Backups 14 | . 6 8 Power 8 | . 2 6 Propulsion 3 | . 2 1 Utility 1 | . 1 . Weapon 2 | . 1 1 Tool/Special . | . . . Average Slot Usage (%) 89 | . 96 87 Engine 11 | . 14 10 Treads 14 | . 28 9 Leg 8 | . . 11 Device 19 | . 14 21 Storage 11 | . 14 10 Ballistic Gun 8 | . 19 4 Special Weapon 6 | . 1 8 Slashing Weapon 7 | . 3 8 Peak Build Rating 15 | 10 8 15 Average Rating 9 | 6 7 11 On Entrance 5 | . 8 8 Naked Turns . | . . . Heaviest Build 26 | 12 15 26 Greatest Support 40 | 40 40 40 Greatest Overweight (x) 1 | 1 . . Average Overweight (x) . | . . . Largest Inventory Capacity 8 | 8 8 8 Average Capacity 7 | 7 8 7 Most Carried 8 | 8 8 8 Average Carried 7 | 5 7 7 Final Capacity 8 | 8 8 5 Final Carried 8 | 8 8 4 Class Distribution -------------------- 57% | Mutant 42% | Scavenger-Mutant Dominant Class ---------------- Mutant | -10/Materials Scavenger-Mutant | -9/Materials Resources | -11 -10 -9 ----------- Run | Yrd Mat Mat Matter Collected 835 | 342 129 364 Remotely . | . . . Salvage Created 1080 | 138 336 606 Parts 83 | 13 30 40 Haulers Intercepted . | . . . Recyclers Shooed . | . . . Parts Field Recycled . | . . . Retrieved Matter . | . . . Parts Self-Destructed . | . . . Prevented . | . . . Kills | -11 -10 -9 ------- Run | Yrd Mat Mat Combat Hostiles Destroyed 27 | . 11 16 Melee 10 | . 4 6 Guns 14 | . 7 7 AOE 3 | . . 3 Classes Destroyed 8 | 3 2 3 Worker 2 | 1 . 1 Builder 1 | . . 1 Tunneler 3 | 3 . . Recycler 2 | 1 . 1 Swarmer 8 | . 3 5 Grunt 16 | . 8 8 Duelist 1 | . . 1 Sentry 2 | . . 2 Best Kill Streak 9 | 2 3 9 Combat Bots Only 6 | . 3 6 Max Kills in Single Turn 3 | 1 1 3 Gunslinging . | . . . Exploded 1 | . . 1 Melee 1 | . 1 1 Uniques/NPCs Destroyed . | . . . Combat | -11 -10 -9 -------- Run | Yrd Mat Mat Hostile Shots Fired 175 | . 41 134 Missed 47 | . 14 33 Hits 128 | . 27 101 Melee 6 | . . 6 Projectile 122 | . 27 95 Critical Strikes 6 | . . 6 Damage Taken 1871 | . 329 1542 Core 443 | . 40 403 Absorbed by Shields . | . . . Regen/Repaired (Parts) 19 | . . 19 Core Remaining (%) 92 | 100 84 . Volleys Fired 64 | 14 21 29 Largest 2 | 2 2 2 Hottest 100 | 40 100 100 Shots Fired 98 | 28 26 44 Gun 86 | 28 25 33 Cannon . | . . . Launcher 5 | . . 5 Special 7 | . 1 6 Kinetic 86 | 28 25 33 Thermal 7 | . 1 6 Explosive 5 | . . 5 Electromagnetic . | . . . Robot Hit Streak 11 | 4 8 11 Robot Miss Streak 4 | 4 1 4 Penetration Max . | . . . Secondary Targets 1 | . . 1 Max Gunslinging Chain 1 | . . 1 Shots Hit Robots 92 | 16 35 41 Core Hits 53 | 8 15 30 Critical Kills . | . . . Critical Parts Destroyed . | . . . Critical Strikes . | . . . Melee Attacks 37 | . 18 19 Impact . | . . . Slashing 33 | . 14 19 Piercing . | . . . Sneak Attacks 3 | . 3 . Combat Hostiles 1 | . 1 . Follow-up Attacks . | . . . Damage Inflicted 1716 | 172 473 1071 Guns 747 | 172 237 338 Cannons . | . . . Explosions 354 | . . 354 Melee 615 | . 236 379 Ramming . | . . . Kinetic 747 | 172 237 338 Thermal . | . . . Explosive 354 | . . 354 Electromagnetic . | . . . Impact . | . . . Slashing 615 | . 236 379 Piercing . | . . . Highest Corruption . | . . . Average Corruption . | . . . Corruption Purged . | . . . Corruption Blocked . | . . . Overload Shots . | . . . Overflow Damage 18 | . . 18 Projectiles . | . . . Explosions 1 | . . 1 Melee 17 | . . 17 Knockbacks . | . . . Impact . | . . . Kinetic . | . . . Secondary . | . . . Self-Inflicted Damage 138 | . . 138 Shots 5 | . . 5 Rammed . | . . . Targets Rammed . | . . . Kicked . | . . . Crushed . | . . . Highest Temperature 45 | . 20 45 Average Temperature 15 | . 9 15 Received Heat Transfer 591 | . 174 417 Siege Activations . | . . . Martial Activations . | . . . Shielding Activations . | . . . Robots Disrupted . | . . . Combat Hostiles . | . . . Robots Corrupted . | . . . Combat Hostiles . | . . . Parts Fried . | . . . Impact Corruptions . | . . . Robots Melted . | . . . Combat Hostiles . | . . . Parts Melted . | . . . Heat Transferred . | . . . Parts Sabotaged . | . . . Parts Stolen . | . . . Parts Stripped . | . . . Power Chain Reactions . | . . . Alert | -11 -10 -9 ------- Run | Yrd Mat Mat Maximum Alert Level 1 | . . 1 Low Security (%) 98 | 100 100 98 Level 1 1 | . . 1 Level 2 . | . . . Level 3 . | . . . Level 4 . | . . . Level 5 . | . . . High Security . | . . . Max Security . | . . . Peak Influence 259 | 10 80 259 Initial 29 | . . 29 Average 26 | . 28 31 Influence Increases 870 | 25 327 518 Destroy 0b10 Robot/C 540 | . 220 320 Destroy 0b10 Robot/NC 40 | 25 . 15 Destroy Leader 160 | . 60 100 Successful Hack 1 | . 1 . Destroy Structure 24 | . 1 23 Partial Spotted 15 | . . 15 Lose Combat Pursuer 90 | . 45 45 Influence Decreases 678 | 25 255 398 Entered New Map 43 | . . 43 Time Decay 484 | 25 214 245 Lost Part 130 | . 20 110 Purge Threat 21 | . 21 . Squads Dispatched 10 | . 5 5 Investigation 3 | . 2 1 Extermination . | . . . Reinforcement 7 | . 3 4 Assault . | . . . Garrison . | . . . Intercept . | . . . Searches Triggered . | . . . Construction Impeded . | . . . Haulers Reinforced . | . . . Active Scanning Responses . | . . . Cargo Convoy Interrupts . | . . . Stealth | -11 -10 -9 --------- Run | Yrd Mat Mat Distress Signals 5 | . . 5 Communications Jammed . | . . . Distress Signals . | . . . Times Spotted 57 | . 25 32 Peak Tracking Total 8 | . 5 8 Tactical Retreats 5 | . 2 3 Traps | -11 -10 -9 ------- Run | Yrd Mat Mat Traps Triggered . | . . . Indirectly . | . . . Trap Hack Attempts . | . . . Triggered . | . . . Disarmed . | . . . Reprogrammed . | . . . Reused . | . . . Traps Extracted . | . . . Installed . | . . . Triggered . | . . . Machines | -11 -10 -9 ---------- Run | Yrd Mat Mat Machines Disabled . | . . . Max in Single Turn . | . . . Machines Repaired . | . . . Machines Dismantled . | . . . Machines Sabotaged . | . . . Overloaded Fab Kills . | . . . Hacking | -11 -10 -9 --------- Run | Yrd Mat Mat Machines Accessed 9 | . 4 5 Terminals 6 | . 2 4 Fabricators . | . . . Repair Stations 1 | . . 1 Recycling Units 2 | . 2 . Scanalyzers . | . . . Garrison Access . | . . . Total Hacks 22 | . 11 11 Successful 7 | . 4 3 Failed 15 | . 7 8 Catastrophic . | . . . Database Lockouts . | . . . Manual 6 | . 1 5 Terminals 13 | . 5 8 Fabricators . | . . . Repair Stations 3 | . . 3 Recycling Units 6 | . 6 . Scanalyzers . | . . . Garrison Access . | . . . Terminal Hacks 3 | . 2 1 Unreport Threat 1 | . 1 . Zone Layout 2 | . 1 1 Fabricator Hacks . | . . . Repair Station Hacks 2 | . . 2 Scan Component 1 | . . 1 Repair 1 | . . 1 Recycling Unit Hacks 2 | . 2 . Recycle Component 1 | . 1 . Retrieve Components 1 | . 1 . Scanalyzer . | . . . Garrison Access Hacks . | . . . Unauthorized Hacks . | . . . Terminals . | . . . Fabricators . | . . . Repair Stations . | . . . Recycling Units . | . . . Scanalyzers . | . . . Garrison Access . | . . . Data Cores Recovered . | . . . Used . | . . . Hacking Detections 9 | . 4 5 Full Trace Events 3 | . 2 1 Feedback Events . | . . . Feedback Blocked . | . . . Robot Schematics Acquired . | . . . Robots Built . | . . . Authchips . | . . . Time . | . . . Total Robot Build Rating . | . . . Part Schematics Acquired . | . . . Parts Built . | . . . Authchips . | . . . Time . | . . . Total Part Build Rating . | . . . Parts Repaired 1 | . . 1 Time 32 | . . 32 Parts Recycled 1 | . 1 . Recycled Matter . | . . . Retrieved Matter . | . . . Retrieved Components 1 | . 1 . Parts Scanalyzed . | . . . Part Schematics Acquired . | . . . Parts Damaged . | . . . Bothacking | -11 -10 -9 ------------ Run | Yrd Mat Mat Used RIF Installer . | . . . Robots Hacked 2 | . 2 . Non-combat 1 | . 1 . Combat 1 | . 1 . Robot Hacks Applied 2 | . 2 . parse_system 1 | . 1 . no_distress 1 | . 1 . Relay Couplers Released . | . . . Fabnet Peak Effective % . | . . . Robots Rewired . | . . . Allies Hacked . | . . . Hacks Repelled . | . . . Allies | -11 -10 -9 -------- Run | Yrd Mat Mat Total Allies . | . . . Largest Group . | . . . Highest-Rated Group . | . . . Highest-Rated Ally . | . . . Total Orders . | . . . Ally Attacks . | . . . Total Damage . | . . . Kills . | . . . Allies Corrupted . | . . . Allies Melted . | . . . Intel | -11 -10 -9 ------- Run | Yrd Mat Mat Active Infowar (turns) 1874 | 37 558 1279 Sensors 212 | . . 212 Terrain 564 | 15 . 549 Seismic 1845 | 22 558 1265 Robot Analysis Total . | . . . Derelict Logs Recovered . | . . . Drone Launches . | . . . Drone Recoveries . | . . . Exploration | -11 -10 -9 ------------- Run | Yrd Mat Mat Turns Passed 2244 | 289 558 1397 Spaces Moved 1073 | 144 264 665 Core 32 | 2 . 30 Treads 578 | 142 264 172 Legs 463 | . . 463 Wheels . | . . . Hover . | . . . Flight . | . . . Fastest Speed 50 | 50 160 50 Average Speed 139 | 158 160 127 Slowest Speed 160 | 160 160 160 Overloaded Moves . | . . . Propulsion Burnouts . | . . . Robots Hopped . | . . . Potential Cave-ins . | . . . Cave-ins Triggered . | . . . Exploration Rate (%) 33 | 8 48 43 Regions Visited 2 Branch Regions . Pre-discovered Areas . | . . . Known Exits Taken . | . . . Unknown Exits Taken 2 | 1 1 . Scrap Searched . | . . . Spaces Dug 7 | . 1 6 Terrain Destroyed 31 | . 1 30 Melee . | . . . Projectile 7 | . 1 6 AOE 24 | . . 24 Terrain Rammed . | . . . Walls Destroyed . | . . . Machines Disabled . | . . . Actions | -11 -10 -9 --------- Run | Yrd Mat Mat Total 1649 | 176 347 1126 Wait 381 | . 20 361 Move 1071 | 143 263 665 Hop . | . . . Pick Up 30 | 9 7 14 Fast Attach 10 | 6 . 4 Attach 13 | 1 2 10 Detach . | . . . Swap 19 | 2 7 10 Drop 24 | 1 9 14 Fire 64 | 14 21 29 Melee 37 | . 18 19 Ram . | . . . Kick . | . . . Crush . | . . . Escape Stasis . | . . . Rewire . | . . . Trap . | . . . Miscellaneous . | . . . Route ------- -11/Scrapyard -10/Materials (discovered 2 exits: *Mat x2) -9/Materials (discovered 2 exits: [*Mat] / [*Sto]) History --------- Turn | Location | Event 12 | -11/Scrapyard | Discovered new exit (range 15) 290 | -11/Scrapyard | Entered Materials 310 | -10/Materials | Build established: Mutant 425 | -10/Materials | Discovered new exit (range 3) 806 | -10/Materials | Discovered new exit (range 5) 848 | -10/Materials | Entered another Materials area 848 | -9/Materials | Evolved 2 slots: Utility x2 1160 | -9/Materials | Build established: Scavenger-Mutant 1669 | -9/Materials | Discovered new exit (range 4) 1692 | -9/Materials | Build established: Mutant 1997 | -9/Materials | Build established: Scavenger-Mutant 2096 | -9/Materials | Repaired Weight Redist. System 2162 | -9/Materials | Discovered new exit (range 15) 2205 | -9/Materials | Core integrity fell below 50% 2243 | -9/Materials | Core integrity fell below 20% 2244 | -9/Materials | Lost 9 parts (1p3n4u1w) 2245 | -9/Materials | Destroyed by S-10 Pest with Light Assault Rifle Last Messages --------------- 02214_ K-01 Serf collects debris. 02214_ Acquired 8 matter. 02216_ U-05 Engineer lays Concrete. 02216_ U-05 Engineer builds a Wall. 02216_ Acquired 91 matter. 02217_ U-05 Engineer builds a Wall. 02218_ The unstable cave ceiling collapses. 02219_ K-01 Serf collects debris. 02219_ Critical hit (Burn: +37). 02222_ U-05 Engineer lays Concrete. 02223_ K-01 Serf collects debris. 02224_ U-05 Engineer lays Concrete. 02225_ U-05 Engineer builds a Wall. 02226_ K-01 Serf collects debris. 02230_ R-06 Scavenger collects Aluminum Leg. 02231_ K-01 Serf collects debris. 02231_ U-05 Engineer builds a Wall. 02232_ U-05 Engineer lays Concrete. 02233_ R-06 Scavenger collects Heat Sink. 02242_ W-16 Scout sends out distress signal. Map ----- +----------------------------------------------------+ | ????????????????????????????????????????????# ## | | ????????????????????????????????????????????# #? | | ????????????????????????????????????????????# ## | | ????????????????????????????????????????????# ## | | ????????????????????????????????????????????# + | | ????????????????????????????????????????????# ## | | ????????????????????????????????????????????# ## | | ????????????????????????????????????????????#+#### | | ??????? ? ?????????????????????????????????? ? | | ??????? " ???????????????????????????? ? | | ?????? ??????????????????????????? | | ?????? [ ??????????????????????????? | | ??????# #???????????????????????????# ######## | | ??????# #???????????????????????????# #??????? | | ??????# #???????????????????????????# +??????? | | ??????# #??????##???????????????????# #??????? | | ??????# ?????? #??????????????????# #??????? | | ####### ######## #??????????????????# #??????? | | # # # #??????????????????# #??????? | | # # """# #??????????????????# ######## | | # ^# """# #??????????????????# ## | | + + """# #????#########????## ## | | # ##### # # #????# ###### # | | =% # !??#*#????# # # | | ==* ##+##### ###### # T +[* | | * /@s w # #= | | ########+###### s ss # ## # | | ! #####????# ########+## ######## | | # #???????# # % + ####### | | #???????# # # #?????? | | ##%## ##???????# " " # # #?????? | | #*####????????# "R" # ####+###### #?????? | | # ##??????????# """ # ??? ???# """ #?????? | | # ##??????????######## ???# #?# """ #?????? | | + ??????????????????#????# """ #?# """ #?????? | | # ???????????????????????# """ !#?# """ #?????? | | # ???????????????????????# """ #?# """ #?????? | | ?+ ???????????????????????# #?# #?????? | | ?# ???????????????????????########?########?????? | | ?? ?????????????????????????????????????????????? | | ?? ????????????????????????????????????????????? | | ?? ????????????????????????????????????????????? | | ?? ????????????????????????????????????????????? | | ?? ????????????????????????????????????????????? | | ??